[Event "Titled Tuesday Blitz June 28 Late 2022"]
[White "Yoo, Christopher Woojin"]
[Black "Ambartsumova, Karina"]
[WhiteFideId "30909694"]
[BlackFideId "4166299"]
[WhiteElo "2105"]
[BlackElo "2262"]
[Result "1-0"]
[Round "08"]
[TimeControl "180+1"]
[Date "2022.06.28"]
[WhiteClock "0:01:42"]
[BlackClock "0:00:54"]

1. e4 {[%clk 0:03:00]}  e5 {[%clk 0:02:59]} 2. Nf3 {[%clk 0:02:58]}  Nc6 {[%clk 0:02:59]} 3. Bc4 {[%clk 0:02:58]}  Bc5 {[%clk 0:02:58]} 4. b4 {[%clk 0:02:58]}  Bb6 {[%clk 0:02:56]} 5. a4 {[%clk 0:02:56]}  a6 {[%clk 0:02:56]} 6. O-O {[%clk 0:02:57]}  Nf6 {[%clk 0:02:52]} 7. d4 {[%clk 0:02:57]}  Nxd4 {[%clk 0:02:47]} 8. Nxe5 {[%clk 0:02:55]}  O-O {[%clk 0:02:47]} 9. Nxf7 {[%clk 0:02:46]}  Rxf7 {[%clk 0:02:42]} 10. Bxf7+ {[%clk 0:02:47]}  Kxf7 {[%clk 0:02:41]} 11. e5 {[%clk 0:02:47]}  Ne8 {[%clk 0:02:33]} 12. Be3 {[%clk 0:02:33]}  Ne6 {[%clk 0:02:27]} 13. Bxb6 {[%clk 0:02:30]}  cxb6 {[%clk 0:02:28]} 14. f4 {[%clk 0:02:29]}  Qh4 {[%clk 0:02:12]} 15. Nc3 {[%clk 0:02:17]}  Kg8 {[%clk 0:01:57]} 16. Nd5 {[%clk 0:02:16]}  Qd8 {[%clk 0:01:39]} 17. f5 {[%clk 0:02:15]}  Ng5 {[%clk 0:01:40]} 18. f6 {[%clk 0:02:13]}  Nf7 {[%clk 0:01:26]} 19. Ne7+ {[%clk 0:02:01]}  Kh8 {[%clk 0:01:26]} 20. Qh5 {[%clk 0:01:57]}  Nxe5 {[%clk 0:01:04]} 21. Qxe5 {[%clk 0:01:53]}  Nxf6 {[%clk 0:01:03]} 22. Rxf6 {[%clk 0:01:53]}  d6 {[%clk 0:00:54]} 23. Qxd6 {[%clk 0:01:42]} 1-0


[Site "https://www.chess.com"]

[Event "Titled Tuesday Blitz June 28 Late 2022"]
[White "Yurasova, Daria"]
[Black "De Souza, Cristiano Gomes"]
[WhiteFideId "34146919"]
[BlackFideId "2151758"]
[WhiteElo "2021"]
[BlackElo "2068"]
[Result "1-0"]
[Round "08"]
[TimeControl "180+1"]
[Date "2022.06.29"]
[WhiteClock "0:01:21"]
[BlackClock "0:00:22"]

1. e4 {[%clk 0:03:00]}  c5 {[%clk 0:02:59]} 2. Nf3 {[%clk 0:03:00]}  d6 {[%clk 0:02:59]} 3. d4 {[%clk 0:02:56]}  cxd4 {[%clk 0:02:58]} 4. Nxd4 {[%clk 0:02:56]}  Nf6 {[%clk 0:02:58]} 5. Nc3 {[%clk 0:02:55]}  a6 {[%clk 0:02:58]} 6. h3 {[%clk 0:02:54]}  g6 {[%clk 0:02:57]} 7. g4 {[%clk 0:02:51]}  Bg7 {[%clk 0:02:57]} 8. Be3 {[%clk 0:02:51]}  O-O {[%clk 0:02:56]} 9. Bg2 {[%clk 0:02:51]}  Nc6 {[%clk 0:02:57]} 10. Qd2 {[%clk 0:02:51]}  Bd7 {[%clk 0:02:56]} 11. O-O-O {[%clk 0:02:51]}  Nxd4 {[%clk 0:02:56]} 12. Bxd4 {[%clk 0:02:51]}  Bc6 {[%clk 0:02:56]} 13. f3 {[%clk 0:02:46]}  Qa5 {[%clk 0:02:54]} 14. h4 {[%clk 0:02:46]}  Rfc8 {[%clk 0:02:50]} 15. h5 {[%clk 0:02:45]}  b5 {[%clk 0:02:47]} 16. Kb1 {[%clk 0:02:43]}  b4 {[%clk 0:02:46]} 17. Nd5 {[%clk 0:02:40]}  Bxd5 {[%clk 0:02:46]} 18. exd5 {[%clk 0:02:39]}  Rab8 {[%clk 0:02:24]} 19. hxg6 {[%clk 0:02:31]}  hxg6 {[%clk 0:02:12]} 20. f4 {[%clk 0:02:15]}  Nxg4 {[%clk 0:01:53]} 21. Bxg7 {[%clk 0:02:04]}  Kxg7 {[%clk 0:01:53]} 22. Bh3 {[%clk 0:02:01]}  Nf6 {[%clk 0:01:02]} 23. Bxc8 {[%clk 0:01:47]}  Rxc8 {[%clk 0:01:00]} 24. Qh2 {[%clk 0:01:42]}  Nh5 {[%clk 0:00:59]} 25. f5 {[%clk 0:01:41]}  Rh8 {[%clk 0:00:41]} 26. fxg6 {[%clk 0:01:41]}  fxg6 {[%clk 0:00:41]} 27. Qe2 {[%clk 0:01:37]}  Qd8 {[%clk 0:00:39]} 28. Qg4 {[%clk 0:01:31]}  Qf8 {[%clk 0:00:35]} 29. Rdg1 {[%clk 0:01:27]}  Qf7 {[%clk 0:00:28]} 30. Rxh5 {[%clk 0:01:21]}  Rxh5 {[%clk 0:00:22]} 31. Qxh5 {[%clk 0:01:21]} 1-0


[Site "https://www.chess.com"]

[Event "Titled Tuesday Blitz June 28 Late 2022"]
[White "Berant"]
[Black "Jorajuria Mendoza, Algol"]
[BlackFideId "5128897"]
[WhiteElo "2524"]
[BlackElo "1600"]
[Result "1-0"]
[Round "09"]
[TimeControl "180+1"]
[Date "2022.06.28"]
[WhiteClock "0:01:16"]
[BlackClock "0:00:01"]

1. e4 {[%clk 0:02:55]}  c5 {[%clk 0:02:58]} 2. Nf3 {[%clk 0:02:55]}  Nc6 {[%clk 0:02:58]} 3. d4 {[%clk 0:02:55]}  cxd4 {[%clk 0:02:59]} 4. Nxd4 {[%clk 0:02:55]}  Nf6 {[%clk 0:02:59]} 5. Nc3 {[%clk 0:02:55]}  e5 {[%clk 0:02:59]} 6. Ndb5 {[%clk 0:02:56]}  d6 {[%clk 0:03:00]} 7. Bg5 {[%clk 0:02:56]}  a6 {[%clk 0:03:00]} 8. Na3 {[%clk 0:02:56]}  b5 {[%clk 0:03:00]} 9. Nd5 {[%clk 0:02:57]}  Be7 {[%clk 0:03:01]} 10. Bxf6 {[%clk 0:02:57]}  Bxf6 {[%clk 0:03:01]} 11. c3 {[%clk 0:02:58]}  O-O {[%clk 0:03:01]} 12. Nc2 {[%clk 0:02:58]}  Be6 {[%clk 0:03:01]} 13. Nce3 {[%clk 0:02:55]}  Ne7 {[%clk 0:02:23]} 14. a4 {[%clk 0:02:46]}  bxa4 {[%clk 0:02:01]} 15. Rxa4 {[%clk 0:02:42]}  a5 {[%clk 0:01:46]} 16. Bc4 {[%clk 0:02:39]}  Bg5 {[%clk 0:01:38]} 17. O-O {[%clk 0:02:35]}  Kh8 {[%clk 0:01:29]} 18. Nxe7 {[%clk 0:02:26]}  Bxe3 {[%clk 0:01:12]} 19. Nd5 {[%clk 0:02:09]}  Bc5 {[%clk 0:01:11]} 20. b4 {[%clk 0:02:08]}  Bb6 {[%clk 0:01:05]} 21. Nxb6 {[%clk 0:02:06]}  Qxb6 {[%clk 0:01:05]} 22. bxa5 {[%clk 0:02:05]}  Qc5 {[%clk 0:00:46]} 23. Bxe6 {[%clk 0:01:58]}  fxe6 {[%clk 0:00:47]} 24. a6 {[%clk 0:01:58]}  Rad8 {[%clk 0:00:27]} 25. a7 {[%clk 0:01:54]}  Ra8 {[%clk 0:00:18]} 26. Qa1 {[%clk 0:01:43]}  Rf7 {[%clk 0:00:17]} 27. Qa2 {[%clk 0:01:41]}  Rfxa7 {[%clk 0:00:13]} 28. Rxa7 {[%clk 0:01:41]}  Rxa7 {[%clk 0:00:12]} 29. Qxe6 {[%clk 0:01:42]}  h6 {[%clk 0:00:10]} 30. Qb3 {[%clk 0:01:36]}  Ra3 {[%clk 0:00:09]} 31. Qb8+ {[%clk 0:01:31]}  Kh7 {[%clk 0:00:10]} 32. h4 {[%clk 0:01:30]}  Rxc3 {[%clk 0:00:08]} 33. h5 {[%clk 0:01:31]}  Rc2 {[%clk 0:00:08]} 34. Qe8 {[%clk 0:01:30]}  Qc8 {[%clk 0:00:06]} 35. Qg6+ {[%clk 0:01:30]}  Kg8 {[%clk 0:00:07]} 36. Qxd6 {[%clk 0:01:30]}  Qg4 {[%clk 0:00:06]} 37. Qxe5 {[%clk 0:01:27]}  Re2 {[%clk 0:00:06]} 38. Qd5+ {[%clk 0:01:25]}  Kh7 {[%clk 0:00:06]} 39. e5 {[%clk 0:01:25]}  Qf5 {[%clk 0:00:02]} 40. f4 {[%clk 0:01:21]}  Re4 {[%clk 0:00:01]} 41. Qd3 {[%clk 0:01:16]}  Rxf4 {[%clk 0:00:01]} 42. Qxf5+ {[%clk 0:01:16]} 1-0


[Site "https://www.chess.com"]

[Event "Titled Tuesday Blitz June 28 Late 2022"]
[White "Bolourchifard, Farzad"]
[Black "Hansen, Eric"]
[WhiteFideId "12510084"]
[BlackFideId "2606771"]
[WhiteElo "2317"]
[BlackElo "2568"]
[Result "0-1"]
[Round "09"]
[TimeControl "180+1"]
[Date "2022.06.28"]
[WhiteClock "0:00:04"]
[BlackClock "0:00:33"]

1. e4 {[%clk 0:03:00]}  b6 {[%clk 0:02:54]} 2. d4 {[%clk 0:02:59]}  Bb7 {[%clk 0:02:55]} 3. Bd3 {[%clk 0:02:59]}  g6 {[%clk 0:02:55]} 4. Nf3 {[%clk 0:02:59]}  Bg7 {[%clk 0:02:56]} 5. O-O {[%clk 0:02:59]}  e6 {[%clk 0:02:55]} 6. Bg5 {[%clk 0:02:57]}  Ne7 {[%clk 0:02:56]} 7. Re1 {[%clk 0:02:53]}  h6 {[%clk 0:02:56]} 8. Bh4 {[%clk 0:02:51]}  d6 {[%clk 0:02:56]} 9. a4 {[%clk 0:02:49]}  a6 {[%clk 0:02:55]} 10. c3 {[%clk 0:02:44]}  Nd7 {[%clk 0:02:55]} 11. Nbd2 {[%clk 0:02:32]}  g5 {[%clk 0:02:54]} 12. Bg3 {[%clk 0:02:32]}  Ng6 {[%clk 0:02:54]} 13. e5 {[%clk 0:02:24]}  d5 {[%clk 0:02:54]} 14. Qc2 {[%clk 0:02:09]}  Ne7 {[%clk 0:02:43]} 15. h3 {[%clk 0:01:58]}  c5 {[%clk 0:02:42]} 16. b4 {[%clk 0:01:45]}  Rc8 {[%clk 0:02:38]} 17. bxc5 {[%clk 0:01:44]}  bxc5 {[%clk 0:02:39]} 18. Qb2 {[%clk 0:01:32]}  Qc7 {[%clk 0:02:38]} 19. Reb1 {[%clk 0:01:31]}  Rb8 {[%clk 0:02:38]} 20. Qc1 {[%clk 0:01:26]}  Nf5 {[%clk 0:02:33]} 21. Bxf5 {[%clk 0:01:25]}  exf5 {[%clk 0:02:27]} 22. e6 {[%clk 0:01:26]}  f4 {[%clk 0:02:27]} 23. exd7+ {[%clk 0:01:26]}  Qxd7 {[%clk 0:02:25]} 24. Bh2 {[%clk 0:01:27]}  O-O {[%clk 0:02:25]} 25. Rb6 {[%clk 0:01:25]}  Qc7 {[%clk 0:02:23]} 26. Rab1 {[%clk 0:01:24]}  Bc6 {[%clk 0:02:10]} 27. Rxa6 {[%clk 0:01:03]}  Rxb1 {[%clk 0:02:00]} 28. Qxb1 {[%clk 0:00:58]}  Rb8 {[%clk 0:02:01]} 29. Qc1 {[%clk 0:00:54]}  Bb7 {[%clk 0:01:55]} 30. Qf1 {[%clk 0:00:42]}  c4 {[%clk 0:01:42]} 31. Ra7 {[%clk 0:00:42]}  Qb6 {[%clk 0:01:43]} 32. Rxb7 {[%clk 0:00:40]}  Rxb7 {[%clk 0:01:44]} 33. g3 {[%clk 0:00:38]}  fxg3 {[%clk 0:01:44]} 34. Bxg3 {[%clk 0:00:38]}  Re7 {[%clk 0:01:30]} 35. Qa1 {[%clk 0:00:27]}  Qe6 {[%clk 0:01:19]} 36. Kg2 {[%clk 0:00:24]}  f5 {[%clk 0:01:18]} 37. Be5 {[%clk 0:00:23]}  g4 {[%clk 0:01:19]} 38. hxg4 {[%clk 0:00:20]}  fxg4 {[%clk 0:01:19]} 39. Nh2 {[%clk 0:00:18]}  Bxe5 {[%clk 0:01:19]} 40. dxe5 {[%clk 0:00:18]}  h5 {[%clk 0:01:09]} 41. a5 {[%clk 0:00:19]}  Ra7 {[%clk 0:01:05]} 42. f4 {[%clk 0:00:12]}  Qf5 {[%clk 0:00:52]} 43. Qb1 {[%clk 0:00:12]}  Qxb1 {[%clk 0:00:45]} 44. Nxb1 {[%clk 0:00:13]}  Rb7 {[%clk 0:00:39]} 45. Nd2 {[%clk 0:00:12]}  Rb2 {[%clk 0:00:33]} 46. Nf1 {[%clk 0:00:12]}  d4 {[%clk 0:00:34]} 47. a6 {[%clk 0:00:04]}  dxc3 {[%clk 0:00:33]} 48. a7 {[%clk 0:00:04]}  Ra2 {[%clk 0:00:33]} 0-1


[Site "https://www.chess.com"]

[Event "Titled Tuesday Blitz June 28 Late 2022"]
[White "Brodowski, Piotr"]
[Black "Estrada Nieto, Julian"]
[WhiteFideId "1124480"]
[BlackFideId "5101018"]
[WhiteElo "2431"]
[BlackElo "2252"]
[Result "0-1"]
[Round "09"]
[TimeControl "180+1"]
[Date "2022.06.29"]
[WhiteClock "0:00:06"]
[BlackClock "0:00:27"]

1. c4 {[%clk 0:02:58]}  e5 {[%clk 0:02:49]} 2. Nc3 {[%clk 0:02:57]}  Nf6 {[%clk 0:02:48]} 3. Nf3 {[%clk 0:02:57]}  Nc6 {[%clk 0:02:47]} 4. g3 {[%clk 0:02:57]}  d5 {[%clk 0:02:46]} 5. cxd5 {[%clk 0:02:55]}  Nxd5 {[%clk 0:02:47]} 6. Bg2 {[%clk 0:02:54]}  Nb6 {[%clk 0:02:48]} 7. O-O {[%clk 0:02:53]}  Be7 {[%clk 0:02:48]} 8. d3 {[%clk 0:02:52]}  O-O {[%clk 0:02:49]} 9. a4 {[%clk 0:02:53]}  a5 {[%clk 0:02:48]} 10. Be3 {[%clk 0:02:53]}  Be6 {[%clk 0:02:46]} 11. Bxb6 {[%clk 0:02:49]}  cxb6 {[%clk 0:02:46]} 12. Nb5 {[%clk 0:02:50]}  f5 {[%clk 0:02:34]} 13. Rc1 {[%clk 0:02:48]}  Bf6 {[%clk 0:02:33]} 14. b3 {[%clk 0:02:42]}  e4 {[%clk 0:02:16]} 15. dxe4 {[%clk 0:02:39]}  Qxd1 {[%clk 0:02:14]} 16. Rfxd1 {[%clk 0:02:37]}  Bxb3 {[%clk 0:02:14]} 17. exf5 {[%clk 0:01:56]}  Bxa4 {[%clk 0:01:52]} 18. Rd5 {[%clk 0:01:55]}  Nb4 {[%clk 0:01:47]} 19. Nc7 {[%clk 0:00:44]}  Nxd5 {[%clk 0:01:38]} 20. Nxd5 {[%clk 0:00:45]}  Rac8 {[%clk 0:01:33]} 21. Rb1 {[%clk 0:00:45]}  Bc6 {[%clk 0:01:10]} 22. Nxb6 {[%clk 0:00:45]}  Rcd8 {[%clk 0:01:06]} 23. Ne1 {[%clk 0:00:40]}  Rd2 {[%clk 0:00:52]} 24. e3 {[%clk 0:00:37]}  Rfd8 {[%clk 0:00:48]} 25. Bf3 {[%clk 0:00:02]}  Bxf3 {[%clk 0:00:40]} 26. Nxf3 {[%clk 0:00:03]}  Rd1+ {[%clk 0:00:40]} 27. Rxd1 {[%clk 0:00:04]}  Rxd1+ {[%clk 0:00:40]} 28. Kg2 {[%clk 0:00:05]}  Rb1 {[%clk 0:00:35]} 29. Nc4 {[%clk 0:00:05]}  a4 {[%clk 0:00:34]} 30. Nfd2 {[%clk 0:00:06]}  Rc1 {[%clk 0:00:32]} 31. e4 {[%clk 0:00:06]}  Bc3 {[%clk 0:00:29]} 32. e5 {[%clk 0:00:06]}  Bxd2 {[%clk 0:00:28]} 33. Nxd2 {[%clk 0:00:07]}  a3 {[%clk 0:00:28]} 34. e6 {[%clk 0:00:06]}  Kf8 {[%clk 0:00:27]} 0-1


[Site "https://www.chess.com"]

[Event "Titled Tuesday Blitz June 28 Late 2022"]
[White "Capp, Stephen"]
[Black "Kohler, Aran"]
[WhiteFideId "2027089"]
[BlackFideId "1002856"]
[WhiteElo "2154"]
[BlackElo "2270"]
[Result "0-1"]
[Round "09"]
[TimeControl "180+1"]
[Date "2022.06.29"]
[WhiteClock "0:00:04"]
[BlackClock "0:00:46"]

1. e4 {[%clk 0:03:00]}  e5 {[%clk 0:02:55]} 2. Nf3 {[%clk 0:03:00]}  Nc6 {[%clk 0:02:55]} 3. Bc4 {[%clk 0:02:59]}  Nf6 {[%clk 0:02:54]} 4. d4 {[%clk 0:02:59]}  exd4 {[%clk 0:02:44]} 5. e5 {[%clk 0:02:59]}  d5 {[%clk 0:02:45]} 6. Bb5 {[%clk 0:02:58]}  Ne4 {[%clk 0:02:39]} 7. Nxd4 {[%clk 0:02:58]}  Bd7 {[%clk 0:02:38]} 8. Bxc6 {[%clk 0:02:56]}  bxc6 {[%clk 0:02:35]} 9. O-O {[%clk 0:02:55]}  Be7 {[%clk 0:02:32]} 10. f3 {[%clk 0:02:51]}  Nc5 {[%clk 0:02:32]} 11. Nd2 {[%clk 0:02:42]}  Ne6 {[%clk 0:02:30]} 12. Nf5 {[%clk 0:02:41]}  Bc5+ {[%clk 0:02:29]} 13. Kh1 {[%clk 0:02:39]}  O-O {[%clk 0:02:29]} 14. Nb3 {[%clk 0:02:33]}  Bb6 {[%clk 0:02:27]} 15. f4 {[%clk 0:02:30]}  Nc5 {[%clk 0:02:18]} 16. Ng3 {[%clk 0:02:24]}  Ne4 {[%clk 0:02:08]} 17. Nxe4 {[%clk 0:02:16]}  dxe4 {[%clk 0:02:09]} 18. f5 {[%clk 0:02:16]}  e3 {[%clk 0:02:02]} 19. f6 {[%clk 0:02:13]}  Be6 {[%clk 0:01:56]} 20. Qf3 {[%clk 0:02:04]}  gxf6 {[%clk 0:01:47]} 21. exf6 {[%clk 0:02:01]}  Kh8 {[%clk 0:01:47]} 22. Bxe3 {[%clk 0:01:53]}  Bd5 {[%clk 0:01:39]} 23. Qh3 {[%clk 0:01:37]}  Rg8 {[%clk 0:01:40]} 24. Rf2 {[%clk 0:01:24]}  Bxe3 {[%clk 0:01:21]} 25. Qxe3 {[%clk 0:01:22]}  Rg6 {[%clk 0:01:09]} 26. Raf1 {[%clk 0:01:21]}  Qg8 {[%clk 0:01:06]} 27. Qh3 {[%clk 0:01:10]}  Re8 {[%clk 0:01:00]} 28. Nd4 {[%clk 0:00:58]}  Re4 {[%clk 0:00:56]} 29. Nf3 {[%clk 0:00:53]}  Rxf6 {[%clk 0:00:51]} 30. b3 {[%clk 0:00:31]}  Ref4 {[%clk 0:00:50]} 31. c4 {[%clk 0:00:20]}  Be6 {[%clk 0:00:50]} 32. Qh5 {[%clk 0:00:15]}  R6f5 {[%clk 0:00:50]} 33. Qh6 {[%clk 0:00:12]}  Rf6 {[%clk 0:00:48]} 34. Qh5 {[%clk 0:00:07]}  R4f5 {[%clk 0:00:48]} 35. Qh4 {[%clk 0:00:04]}  Rg6 {[%clk 0:00:46]} 0-1


[Site "https://www.chess.com"]

[Event "Titled Tuesday Blitz June 28 Late 2022"]
[White "Chen, Max"]
[Black "Navarrete Mendez, Gonzalo Alberto"]
[WhiteFideId "2622440"]
[BlackFideId "5106850"]
[WhiteElo "2493"]
[BlackElo "2261"]
[Result "0-1"]
[Round "09"]
[TimeControl "180+1"]
[Date "2022.06.28"]
[WhiteClock "0:00:10"]
[BlackClock "0:00:35"]

1. e4 {[%clk 0:03:00]}  e5 {[%clk 0:02:59]} 2. Nf3 {[%clk 0:02:58]}  Nc6 {[%clk 0:03:00]} 3. Bc4 {[%clk 0:02:58]}  Nf6 {[%clk 0:02:59]} 4. d3 {[%clk 0:02:58]}  Be7 {[%clk 0:02:59]} 5. O-O {[%clk 0:02:57]}  O-O {[%clk 0:02:59]} 6. Nbd2 {[%clk 0:02:58]}  d5 {[%clk 0:02:59]} 7. exd5 {[%clk 0:02:58]}  Nxd5 {[%clk 0:02:59]} 8. Ne4 {[%clk 0:02:54]}  Bg4 {[%clk 0:02:53]} 9. h3 {[%clk 0:02:53]}  Bh5 {[%clk 0:02:53]} 10. Ng3 {[%clk 0:02:51]}  Bg6 {[%clk 0:02:49]} 11. Re1 {[%clk 0:02:49]}  Nb6 {[%clk 0:02:47]} 12. Bb5 {[%clk 0:02:12]}  f6 {[%clk 0:02:47]} 13. Bxc6 {[%clk 0:02:11]}  bxc6 {[%clk 0:02:47]} 14. Nh4 {[%clk 0:02:12]}  Bf7 {[%clk 0:02:28]} 15. Nhf5 {[%clk 0:02:11]}  Kh8 {[%clk 0:01:43]} 16. Qg4 {[%clk 0:01:58]}  Rg8 {[%clk 0:01:43]} 17. Nxe7 {[%clk 0:01:02]}  Qxe7 {[%clk 0:01:42]} 18. Bd2 {[%clk 0:00:45]}  Be6 {[%clk 0:01:42]} 19. Qh4 {[%clk 0:00:44]}  Qf7 {[%clk 0:01:41]} 20. Ne4 {[%clk 0:00:41]}  Nd5 {[%clk 0:01:29]} 21. c3 {[%clk 0:00:29]}  Rad8 {[%clk 0:01:27]} 22. d4 {[%clk 0:00:25]}  Ne7 {[%clk 0:01:24]} 23. Nc5 {[%clk 0:00:21]}  Bd5 {[%clk 0:01:17]} 24. dxe5 {[%clk 0:00:20]}  Ng6 {[%clk 0:01:17]} 25. Qh5 {[%clk 0:00:20]}  Nxe5 {[%clk 0:01:17]} 26. Qxf7 {[%clk 0:00:20]}  Bxf7 {[%clk 0:01:14]} 27. Bf4 {[%clk 0:00:20]}  Nc4 {[%clk 0:01:09]} 28. b3 {[%clk 0:00:18]}  Nd6 {[%clk 0:01:08]} 29. Re7 {[%clk 0:00:18]}  Bd5 {[%clk 0:00:36]} 30. Rxc7 {[%clk 0:00:17]}  Nb5 {[%clk 0:00:36]} 31. Rb7 {[%clk 0:00:15]}  Nxc3 {[%clk 0:00:36]} 32. Rxa7 {[%clk 0:00:16]}  Ne2+ {[%clk 0:00:36]} 33. Kf1 {[%clk 0:00:16]}  Nxf4 {[%clk 0:00:37]} 34. g3 {[%clk 0:00:16]}  Nxh3 {[%clk 0:00:36]} 35. a4 {[%clk 0:00:14]}  Ng5 {[%clk 0:00:35]} 36. a5 {[%clk 0:00:14]}  Ne4 {[%clk 0:00:35]} 37. Rd1 {[%clk 0:00:10]}  Nxc5 {[%clk 0:00:35]} 0-1


[Site "https://www.chess.com"]

[Event "Titled Tuesday Blitz June 28 Late 2022"]
[White "Chernomordik, Pavel"]
[Black "Desideri, Ricardo Maruchi"]
[WhiteFideId "2804530"]
[BlackFideId "2110440"]
[WhiteElo "2220"]
[BlackElo "1945"]
[Result "1-0"]
[Round "09"]
[TimeControl "180+1"]
[Date "2022.06.29"]
[WhiteClock "0:00:16"]
[BlackClock "0:00:01"]

1. e4 {[%clk 0:03:00]}  c5 {[%clk 0:02:37]} 2. Nc3 {[%clk 0:02:59]}  d6 {[%clk 0:02:35]} 3. f4 {[%clk 0:02:58]}  g6 {[%clk 0:02:34]} 4. Nf3 {[%clk 0:02:58]}  Bg7 {[%clk 0:02:35]} 5. Bb5+ {[%clk 0:02:58]}  Nd7 {[%clk 0:02:31]} 6. O-O {[%clk 0:02:57]}  a6 {[%clk 0:02:31]} 7. Be2 {[%clk 0:02:52]}  b5 {[%clk 0:02:29]} 8. d3 {[%clk 0:02:51]}  Bb7 {[%clk 0:02:29]} 9. Be3 {[%clk 0:02:47]}  e5 {[%clk 0:02:27]} 10. f5 {[%clk 0:02:43]}  Ngf6 {[%clk 0:02:20]} 11. h3 {[%clk 0:02:38]}  O-O {[%clk 0:02:19]} 12. Qd2 {[%clk 0:02:37]}  Re8 {[%clk 0:02:16]} 13. Bh6 {[%clk 0:02:36]}  Bh8 {[%clk 0:02:15]} 14. Ng5 {[%clk 0:02:32]}  Qc7 {[%clk 0:01:59]} 15. g4 {[%clk 0:02:30]}  d5 {[%clk 0:01:55]} 16. exd5 {[%clk 0:02:24]}  Nxd5 {[%clk 0:01:50]} 17. Nxf7 {[%clk 0:02:15]}  Kxf7 {[%clk 0:01:42]} 18. fxg6+ {[%clk 0:02:14]}  Kg8 {[%clk 0:01:37]} 19. Qg5 {[%clk 0:02:12]}  Qd8 {[%clk 0:01:20]} 20. gxh7+ {[%clk 0:02:01]}  Kxh7 {[%clk 0:01:20]} 21. Qh5 {[%clk 0:02:01]}  N7f6 {[%clk 0:01:08]} 22. Qh4 {[%clk 0:01:52]}  Kg8 {[%clk 0:00:55]} 23. Bg5 {[%clk 0:01:44]}  Nf4 {[%clk 0:00:45]} 24. Bf3 {[%clk 0:01:33]}  Bxf3 {[%clk 0:00:41]} 25. Rxf3 {[%clk 0:01:33]}  Ra7 {[%clk 0:00:35]} 26. Ne4 {[%clk 0:01:29]}  Rh7 {[%clk 0:00:32]} 27. Qe1 {[%clk 0:01:17]}  Qd4+ {[%clk 0:00:25]} 28. Kh2 {[%clk 0:01:13]}  Nxe4 {[%clk 0:00:19]} 29. dxe4 {[%clk 0:01:11]}  Qxb2 {[%clk 0:00:17]} 30. Rd1 {[%clk 0:01:10]}  Qxc2+ {[%clk 0:00:15]} 31. Rd2 {[%clk 0:01:07]}  Qc4 {[%clk 0:00:13]} 32. h4 {[%clk 0:01:01]}  Bg7 {[%clk 0:00:11]} 33. Rd7 {[%clk 0:00:57]}  Bf8 {[%clk 0:00:10]} 34. Rxh7 {[%clk 0:00:55]}  Kxh7 {[%clk 0:00:09]} 35. Qd1 {[%clk 0:00:47]}  Qd4 {[%clk 0:00:06]} 36. Qb3 {[%clk 0:00:39]}  c4 {[%clk 0:00:06]} 37. Qc2 {[%clk 0:00:38]}  Bh6 {[%clk 0:00:06]} 38. Bxh6 {[%clk 0:00:35]}  Kxh6 {[%clk 0:00:04]} 39. Rg3 {[%clk 0:00:22]}  Rd8 {[%clk 0:00:03]} 40. g5+ {[%clk 0:00:20]}  Kg6 {[%clk 0:00:02]} 41. h5+ {[%clk 0:00:18]}  Nxh5 {[%clk 0:00:02]} 42. Rg2 {[%clk 0:00:17]}  Qd3 {[%clk 0:00:01]} 43. Qf2 {[%clk 0:00:16]} 1-0


[Site "https://www.chess.com"]

[Event "Titled Tuesday Blitz June 28 Late 2022"]
[White "Colivet Gamboa, Julio Cesar"]
[Black "Florescu, Codrut-Constantin"]
[WhiteFideId "3949583"]
[BlackFideId "1202200"]
[WhiteElo "1743"]
[BlackElo "2191"]
[Result "0-1"]
[Round "09"]
[TimeControl "180+1"]
[Date "2022.06.29"]
[WhiteClock "0:01:42"]
[BlackClock "0:01:48"]

1. c4 {[%clk 0:03:00]}  e5 {[%clk 0:02:58]} 2. Nc3 {[%clk 0:03:00]}  Nc6 {[%clk 0:02:58]} 3. g3 {[%clk 0:03:01]}  d6 {[%clk 0:02:59]} 4. Bg2 {[%clk 0:03:01]}  Be6 {[%clk 0:02:59]} 5. d3 {[%clk 0:03:00]}  Qd7 {[%clk 0:03:00]} 6. e4 {[%clk 0:03:00]}  f5 {[%clk 0:02:59]} 7. Nge2 {[%clk 0:02:59]}  Nf6 {[%clk 0:02:56]} 8. Nd5 {[%clk 0:02:56]}  Be7 {[%clk 0:02:54]} 9. O-O {[%clk 0:02:56]}  O-O {[%clk 0:02:54]} 10. f4 {[%clk 0:02:55]}  fxe4 {[%clk 0:02:51]} 11. dxe4 {[%clk 0:02:55]}  exf4 {[%clk 0:02:49]} 12. Nexf4 {[%clk 0:02:55]}  Bg4 {[%clk 0:02:38]} 13. Qd3 {[%clk 0:02:46]}  Ne5 {[%clk 0:02:37]} 14. Qc2 {[%clk 0:02:43]}  c6 {[%clk 0:02:36]} 15. Ne3 {[%clk 0:02:42]}  Bd8 {[%clk 0:02:28]} 16. Nxg4 {[%clk 0:02:39]}  Nfxg4 {[%clk 0:02:27]} 17. h3 {[%clk 0:02:39]}  Bb6+ {[%clk 0:02:26]} 18. Kh1 {[%clk 0:02:37]}  Ne3 {[%clk 0:02:24]} 19. Bxe3 {[%clk 0:02:35]}  Bxe3 {[%clk 0:02:25]} 20. Rad1 {[%clk 0:02:33]}  Qe7 {[%clk 0:02:23]} 21. Qe2 {[%clk 0:02:31]}  Bc5 {[%clk 0:02:20]} 22. a3 {[%clk 0:02:30]}  a5 {[%clk 0:02:19]} 23. Kh2 {[%clk 0:02:24]}  a4 {[%clk 0:02:18]} 24. Nd3 {[%clk 0:02:23]}  Nxd3 {[%clk 0:02:15]} 25. Qxd3 {[%clk 0:02:23]}  Qe5 {[%clk 0:02:11]} 26. Qe2 {[%clk 0:02:16]}  Bd4 {[%clk 0:02:06]} 27. Rd2 {[%clk 0:02:03]}  Rxf1 {[%clk 0:02:03]} 28. Bxf1 {[%clk 0:02:03]}  Rf8 {[%clk 0:02:02]} 29. Qd3 {[%clk 0:01:49]}  c5 {[%clk 0:01:51]} 30. b4 {[%clk 0:01:42]}  axb3 {[%clk 0:01:50]} 31. Qxb3 {[%clk 0:01:42]}  Rxf1 {[%clk 0:01:48]} 0-1


[Site "https://www.chess.com"]